bitfinex-derivatives/quotes_ETHF0:USTF0_20250213
["timestamp","ask_amount","ask_price","bid_price","bid_amount"]
[1739464263089,0.00571875,2626.6,2626.2,3.2078]
[1739464263290,0.00571875,2626.6,2626.5,3.96915]
[1739464263898,3.2078,2627.2,2626.5,9.2078]
[1739464264094,3.2078,2627.2,2627.0,4.7334583]
[1739464264393,3.2078,2627.2,2626.8,3.2078]
[1739464264600,3.2078,2627.2,2626.8,40.8]
[1739464264794,3.2078,2626.9,2626.2,5.0858]
[1739464265099,1.878,2627.2,2626.4,0.76137]
[1739464265100,3.2078,2626.6,2626.4,0.76137]
[1739464265392,0.00571875,2626.8,2626.5,3.2078]
[1739464265794,0.00571875,2626.8,2626.7,0.76129]
[1739464266298,0.00571875,2626.8,2626.5,3.2078]
[1739464266596,0.00571875,2626.8,2626.2,3.2078]
[1739464266793,0.76699875,2626.8,2626.3,0.76139]
[1739464266997,0.76145,2626.2,2626.0,1.15491875]
[1739464267194,3.2078,2626.1,2626.0,0.00571875]
[1739464267394,3.96927,2626.1,2626.0,0.00571875]
[1739464267993,9.2078,2626.1,2625.1,0.5705]
[1739464268195,3.2078,2625.6,2624.9,3.2078]
[1739464268393,5.0848,2625.6,2624.9,3.2078]
[1739464268592,3.2078,2625.2,2624.8,0.5524]
[1739464268796,3.2078,2625.2,2624.4,2.4325]
[1739464269193,3.2078,2625.2,2624.0,0.5669]
[1739464269194,3.2078,2624.9,2624.0,0.5669]
[1739464269395,0.00571875,2625.1,2624.7,0.00571875]
[1739464269590,1.879,2625.0,2624.7,0.00571875]
[1739464269795,0.76185,2624.8,2624.7,0.00571875]
[1739464270196,3.96963,2624.9,2624.7,0.00571875]
[1739464270799,3.2078,2624.9,2624.7,0.00571875]
[1739464271103,0.76185,2624.8,2624.7,0.00571875]
[1739464271602,0.76195,2624.5,2623.7,5.0848]
[1739464271900,3.2078,2624.4,2623.7,3.2078]
[1739464272100,3.2078,2624.4,2623.9,0.76209]
[1739464272300,0.76206,2624.1,2623.7,3.2078]
[1739464272504,0.76206,2624.1,2623.7,3.96996]
[1739464272902,0.762,2624.3,2623.7,3.2078]
[1739464273102,0.762,2624.3,2623.9,0.76209]
[1739464273401,0.76206,2624.1,2623.7,3.96995]
[1739464273796,1.877,2624.3,2624.0,0.76206]
[1739464274002,1.877,2624.3,2623.7,3.2078]
[1739464274003,0.76201,2624.3,2623.9,0.76209]
[1739464274207,3.2078,2624.4,2623.7,3.2078]
[1739464274697,0.76208,2624.1,2623.7,3.96995]
[1739464274999,3.2078,2624.0,2623.6,0.00571875]
[1739464275196,3.2078,2624.0,2623.8,0.76213]
[1739464275398,3.2078,2624.0,2623.6,0.00571875]
[1739464275594,1.881,2624.2,2623.6,0.00571875]
[1739464275595,3.2078,2623.7,2623.6,0.00571875]
[1739464275794,5.0878,2623.7,2623.6,0.00571875]
[1739464276000,5.0878,2623.7,2622.7,3.7973]
[1739464276200,5.0918,2623.7,2623.6,0.76219]
[1739464276400,0.76209,2624.0,2623.3,3.2078]
[1739464276401,3.2078,2624.0,2623.3,3.2078]
[1739464276592,3.2078,2624.0,2623.9,0.76211]
[1739464276798,3.2078,2624.0,2623.3,5.11351]
[1739464277103,21.85959,2624.9,2623.3,5.11351]
[1739464277104,3.2078,2625.2,2623.9,7.63617305]
[1739464277310,0.7618,2625.0,2624.7,0.76186]
[1739464277604,3.2078,2625.2,2624.3,7.63617305]
[1739464277801,0.76186,2624.8,2624.1,0.5542]
[1739464278001,3.2078,2624.9,2624.3,3.2078]
[1739464278304,3.2078,2624.9,2624.8,0.76185]
[1739464278505,3.2078,2624.9,2624.3,3.2078]
[1739464278704,3.2078,2624.9,2624.7,0.76186]
[1739464278904,3.2078,2624.9,2624.4,40.8]
[1739464279298,0.76193,2624.5,2624.4,40.8]
[1739464279606,5.0958,2624.6,2624.0,3.2078]
[1739464279804,1.888,2624.6,2624.5,0.76193]
[1739464280008,0.76184,2624.9,2624.2,40.8]
[1739464280304,3.2078,2624.7,2624.2,40.8]
[1739464280509,3.2078,2624.7,2624.0,3.2078]
[1739464280801,3.2078,2624.1,2623.3,3.762]
[1739464281106,3.2078,2624.1,2623.1,4.42837305]
[1739464281107,0.76219,2623.7,2623.2,40.8]
[1739464281305,0.76221,2623.6,2623.4,0.76225]
[1739464281603,3.2078,2623.8,2623.2,40.8]
[1739464281804,3.21351875,2623.8,2623.5,0.76221]
[1739464282002,3.21351875,2623.8,2623.1,3.2078]
[1739464282204,0.00571875,2623.8,2623.7,0.76216]
[1739464282804,0.00571875,2623.8,2623.7,3.96996]
[1739464283005,5.87269,2624.7,2623.7,9.2078]
[1739464283307,3.2078,2624.7,2624.6,0.7619]
[1739464283703,3.2078,2625.2,2624.3,3.2078]
[1739464283904,3.2078,2624.9,2624.3,3.2078]
[1739464284411,0.00571875,2624.9,2624.8,0.76185]
[1739464285516,8.75e-06,2624.9,2624.8,0.76185]
[1739464285806,8.75e-06,2624.9,2624.8,13.09522305]
[1739464286203,8.75e-06,2624.9,2624.8,7.69412305]
[1739464286398,8.75e-06,2624.9,2624.8,5.78912305]
[1739464286602,8.75e-06,2624.9,2624.7,0.5862]
[1739464286804,3.20780875,2624.9,2624.3,0.00571875]
[1739464287109,3.2078,2624.6,2624.3,0.00571875]
[1739464287314,3.20780875,2624.9,2624.5,0.76193]
[1739464287507,3.20780875,2624.9,2624.3,0.00571875]
[1739464288310,3.20780875,2624.9,2624.8,0.76185]
[1739464288810,8.75e-06,2624.9,2624.8,0.76185]
[1739464289013,0.76187,2624.8,2624.5,3.2078]
[1739464289310,3.2078,2624.6,2624.3,0.00571875]
[1739464289505,0.76196,2624.4,2624.3,0.00571875]
[1739464290105,0.76194,2624.5,2624.3,0.00571875]
[1739464290310,3.2078,2624.6,2624.3,0.00571875]
[1739464290513,0.76196,2624.4,2624.3,0.00571875]
[1739464290707,3.2078,2624.6,2624.3,0.00571875]
[1739464291009,0.76196,2624.4,2624.3,0.00571875]
[1739464291409,3.2078,2624.6,2624.3,0.00571875]
[1739464291814,0.76196,2624.4,2624.3,0.00571875]
[1739464292513,3.2078,2624.3,2622.5,3.2078]
[1739464292714,0.76231,2623.2,2623.0,0.76237]
[1739464293010,3.2078,2623.5,2623.1,40.8]
[1739464293215,0.7623,2623.3,2623.1,40.8]
[1739464293410,3.2078,2623.5,2623.1,0.76234]
[1739464293610,3.2078,2623.5,2622.7,1.90613]
[1739464293819,3.21351875,2623.5,2623.2,0.76229]
[1739464294116,3.21351875,2623.5,2623.1,0.76233]
[1739464294312,0.76237,2623.0,2622.9,0.00571875]
[1739464295011,1.913,2623.1,2622.9,0.00571875]
[1739464295209,3.2078,2623.2,2622.9,0.00571875]
[1739464295414,0.00571875,2623.5,2623.4,0.76225]
[1739464296819,0.00571875,2623.5,2623.3,0.76228]
[1739464297017,0.00571875,2623.5,2623.2,3.2078]
[1739464297018,0.00571875,2623.5,2623.0,1.1247]
[1739464297320,0.76225,2623.4,2623.2,0.7623]
[1739464297621,0.76794875,2623.5,2623.3,0.76227]
[1739464297812,0.00571875,2623.5,2623.4,0.76225]
[1739464298517,0.00571875,2623.5,2622.9,0.00571875]
[1739464298712,3.2078,2623.2,2623.0,40.8]
[1739464299022,3.2078,2623.2,2623.1,0.76234]
[1739464299513,0.00571875,2623.5,2623.4,0.76225]
[1739464300017,0.00571875,2623.5,2623.4,41.56225]
[1739464303215,0.00571875,2623.5,2623.4,40.8]
[1739464303417,0.00571875,2623.5,2623.1,0.5646]
[1739464303614,0.00571875,2623.5,2622.9,0.00571875]
[1739464304020,0.00571875,2623.5,2623.1,1.90586]
[1739464304214,0.00571875,2623.5,2623.0,40.8]
[1739464304616,0.7623,2623.3,2623.2,0.76231]
[1739464304817,3.2078,2623.3,2622.9,0.00571875]
[1739464305017,0.76234,2623.1,2623.0,0.76234]
[1739464305223,3.2078,2623.3,2622.9,0.00571875]
[1739464305424,0.76235,2623.1,2623.0,0.76236]
[1739464305924,3.2078,2623.3,2623.2,0.76231]
[1739464306117,0.00571875,2623.5,2622.9,5.11948875]
[1739464306318,0.00571875,2623.5,2623.4,0.76225]
[1739464307420,0.00571875,2623.5,2622.9,3.21351875]
[1739464307623,3.21351875,2623.5,2622.9,0.00571875]
[1739464307813,3.97574875,2623.5,2623.4,0.76225]
[1739464308017,3.97574875,2623.5,2623.1,0.76233]
[1739464308018,0.76232,2623.2,2623.1,0.76233]
[1739464308218,0.76235,2623.1,2623.0,0.76236]
[1739464308414,0.76237,2623.0,2622.9,0.00571875]
[1739464308624,3.2078,2623.2,2622.9,0.00571875]
[1739464308829,3.21351875,2623.5,2622.9,0.00571875]
[1739464309120,0.00571875,2623.5,2623.4,0.76225]
[1739464310325,0.00571875,2623.5,2623.0,5.11373]
[1739464310521,0.00571875,2623.5,2623.3,0.76227]
[1739464310522,0.76227,2623.4,2623.3,0.76227]
[1739464310714,3.2078,2623.4,2622.9,0.00571875]
[1739464311124,0.76237,2623.0,2622.9,0.00571875]
[1739464312023,1.90614,2622.8,2622.0,5.76122305]
[1739464312228,3.2078,2622.6,2622.0,0.5702]
[1739464312623,0.76258,2622.3,2622.0,0.5702]
[1739464312928,0.76263,2622.1,2622.0,0.5702]
[1739464313127,0.76266,2622.0,2621.9,3.2078]
[1739464313325,3.82229,2622.5,2621.4,0.5702]
[1739464313326,3.2078,2622.2,2621.4,0.5702]
[1739464313530,1.90658,2622.1,2621.4,1.33302]
[1739464313730,0.76279,2621.6,2621.4,0.5702]
[1739464314029,1.91229875,2622.1,2621.0,3.2078]
[1739464314030,0.7629,2621.2,2621.0,3.2078]
[1739464314220,2.68289,2621.3,2621.0,3.2078]
[1739464314532,1.92,2621.3,2621.1,40.8]
[1739464315223,1.92,2621.3,2620.4,4.42837305]
[1739464315224,7.92,2621.3,2620.4,3.2078]
[1739464315429,3.2078,2620.6,2619.5,4.4056]
[1739464315619,4.42837305,2621.0,2619.5,3.8073]
[1739464315620,3.2078,2620.2,2619.5,3.8073]
[1739464315928,8.75e-06,2620.3,2620.2,0.76318]
[1739464316132,8.75e-06,2620.3,2620.2,3.97098]
[1739464316425,8.75e-06,2620.3,2620.2,11.90698]
[1739464316830,3.2078,2621.4,2620.2,51.9438]
[1739464317134,2.69976,2621.7,2621.2,0.76289]
[1739464317330,1.937,2621.7,2621.0,3.2078]
[1739464317826,1.1327,2622.1,2621.3,3.2078]
[1739464317827,3.7627,2622.1,2621.3,3.2078]
[1739464318128,0.00571875,2621.6,2621.5,0.7628]
[1739464318329,8.75e-06,2621.6,2621.5,8.39897305]
[1739464318526,8.75e-06,2621.6,2621.5,7.63617305]
[1739464318728,8.75e-06,2621.6,2621.5,40.8]
[1739464318929,8.75e-06,2621.6,2621.5,41.5628]
[1739464319139,8.75e-06,2621.6,2621.5,55.19897305]
[1739464319633,8.75e-06,2621.6,2621.5,49.19897305]
[1739464320031,8.75e-06,2621.6,2621.5,55.19897305]
[1739464320727,3.2078,2622.5,2621.5,54.43617305]
[1739464320926,3.2078,2623.1,2622.4,3.2078]
[1739464321535,3.8077,2623.5,2622.6,4.42837305]
[1739464321831,3.2078,2623.1,2622.5,40.8]
[1739464322032,2.50549,2623.5,2621.8,4.42837305]
[1739464322033,3.2078,2622.8,2621.8,4.42837305]
[1739464322228,0.76248,2622.6,2622.5,0.00571875]
[1739464322431,5.1668,2622.7,2621.4,4.98947305]
[1739464322727,3.2078,2621.9,2621.5,0.76279]
[1739464322929,3.2078,2621.9,2621.0,48.43617305]
[1739464323123,4.38,2622.6,2622.0,0.76264]
[1739464323436,1.3624,2622.6,2622.0,3.2078]
[1739464323633,3.2078,2622.5,2622.4,0.76254]
[1739464323935,3.97602875,2622.6,2622.0,3.21351875]
[1739464324132,0.76256,2622.4,2622.0,3.21351875]
[1739464324440,3.21351875,2622.6,2622.0,0.00571875]
[1739464324621,3.21351875,2622.6,2622.4,0.76253]
[1739464324826,3.21351875,2622.6,2622.5,0.76251]
[1739464325026,0.00571875,2622.6,2622.5,0.76251]
[1739464325226,8.75e-06,2622.6,2622.5,8.73051]
[1739464325426,5.02117305,2624.6,2622.5,6.39637305]
[1739464325427,3.2078,2623.5,2622.5,6.39637305]
[1739464325724,3.2078,2623.8,2622.8,3.2078]
[1739464326032,0.5811,2624.1,2623.4,3.2078]
[1739464326234,0.5811,2624.1,2623.9,0.76208]
[1739464326423,0.5811,2624.1,2623.3,1.90568]
[1739464326424,0.5811,2624.1,2623.7,3.2078]
[1739464326628,1.1817,2624.6,2623.9,0.7621]
[1739464326629,0.00571875,2624.0,2623.9,0.7621]
[1739464327635,3.2078,2625.1,2623.7,3.21351875]
[1739464327931,3.2078,2624.8,2624.0,7.63617305]
[1739464328140,0.76189,2624.7,2624.2,3.96982]
[1739464328334,3.2078,2624.8,2624.0,4.42837305]
[1739464328535,3.2078,2624.4,2623.8,3.2078]
[1739464328936,3.2078,2624.4,2623.7,0.00571875]
[1739464328937,5.1838,2624.4,2623.7,0.00571875]
[1739464329133,0.76209,2624.0,2623.7,0.00571875]
[1739464329332,3.2078,2624.1,2623.7,0.00571875]
[1739464329639,0.76208,2624.0,2623.7,0.00571875]
[1739464329833,3.2078,2624.5,2623.7,3.21351875]
[1739464330042,2.5475,2624.6,2623.7,3.21351875]
[1739464330231,0.5735,2624.6,2624.5,0.76193]
[1739464330435,0.00571875,2624.7,2624.0,7.63617305]
[1739464331139,0.00571875,2624.7,2624.6,0.7619]
[1739464331347,0.00571875,2624.7,2624.6,3.9697]
[1739464331747,0.00571875,2624.7,2624.6,41.5619]
[1739464332443,0.00571875,2624.7,2624.1,0.5887]
[1739464332642,0.76197,2624.4,2624.1,0.76204]
[1739464332834,3.21351875,2624.7,2624.0,4.42837305]
[1739464333030,3.2078,2624.4,2623.9,3.2078]
[1739464333439,0.76214,2623.8,2623.7,0.00571875]
[1739464333741,2.74114,2623.8,2623.7,0.00571875]
[1739464334238,8.74114,2623.8,2622.8,5.00477305]
[1739464334441,3.2078,2623.5,2622.8,5.00477305]
[1739464335033,0.76229,2623.3,2623.0,0.76235]
[1739464335239,0.76235,2623.1,2622.8,0.76241]
[1739464335440,3.2078,2623.6,2622.9,0.00571875]
[1739464335633,3.2078,2623.6,2623.0,3.2078]
[1739464335836,0.00571875,2623.5,2623.4,0.76225]
[1739464336243,0.00571875,2623.5,2622.9,0.00571875]
[1739464336641,0.76231,2623.2,2623.0,0.76235]
[1739464336947,3.9701,2623.3,2623.0,0.76235]
[1739464337144,3.2078,2623.3,2622.9,0.00571875]
[1739464337643,0.00571875,2623.5,2623.3,0.76226]
[1739464338043,3.21351875,2623.5,2622.9,0.00571875]
[1739464338544,3.21351875,2623.5,2623.3,0.76227]
[1739464338933,0.00571875,2623.5,2623.4,0.76225]
[1739464339134,0.00571875,2623.5,2623.4,3.97005]
[1739464339545,3.7686,2624.8,2623.4,9.2078]
[1739464339741,3.7686,2624.8,2624.5,0.76191]
[1739464339944,3.7686,2624.8,2624.0,1.9052]
[1739464340150,3.7686,2624.8,2624.2,3.2078]
[1739464340444,1.974,2624.9,2624.2,7.63617305]
[1739464340445,0.76189,2624.7,2624.2,7.63617305]
[1739464340645,3.21351875,2624.8,2624.2,7.6418918]
[1739464340848,3.97537875,2624.8,2624.6,0.7619]
[1739464341149,3.97537875,2624.8,2624.6,0.76189]
[1739464341347,0.76189,2624.7,2624.5,0.76192]
[1739464341645,3.21351875,2624.8,2624.7,0.76187]
[1739464341847,0.00571875,2624.8,2624.7,0.76187]
[1739464342543,0.00571875,2624.8,2624.5,3.2078]
[1739464342747,3.21351875,2624.8,2624.2,3.21351875]
[1739464343042,3.96979,2624.3,2624.2,0.00571875]
[1739464343247,3.2078,2624.3,2624.2,0.00571875]
[1739464343545,3.96979,2624.3,2624.2,0.00571875]
[1739464344946,3.7879,2624.3,2624.2,0.00571875]
[1739464345147,1.1461,2624.7,2624.2,0.00571875]
[1739464345346,3.1151,2624.7,2624.2,0.00571875]
[1739464345647,3.21351875,2624.8,2624.2,4.4340918]
[1739464345648,0.00571875,2624.8,2624.2,4.4340918]
[1739464345848,0.00571875,2624.8,2624.7,0.76187]
[1739464346651,5.1788,2625.4,2624.7,3.2078]
[1739464346944,3.96949,2625.4,2624.7,3.2078]
[1739464347143,1.97,2625.7,2625.0,3.2078]
[1739464347144,3.2078,2625.7,2625.0,3.2078]
[1739464347340,3.2078,2626.3,2625.3,3.2078]
[1739464347540,1.973,2626.1,2625.4,4.42837305]
[1739464347848,1.97871875,2626.1,2625.4,4.42837305]
[1739464348052,0.76156,2625.8,2625.5,0.76733875]
[1739464348248,3.2078,2625.9,2625.8,0.76156]
[1739464348454,0.76161,2625.6,2625.5,0.00571875]
[1739464348752,3.2078,2625.6,2625.5,0.00571875]
[1739464348955,3.96941,2625.6,2625.5,0.00571875]
[1739464349250,3.2078,2625.6,2625.5,0.00571875]
[1739464349647,1.976,2625.7,2625.6,0.76161]
[1739464349946,1.973,2626.0,2625.5,0.00571875]
[1739464350143,3.2078,2625.8,2625.5,0.00571875]
[1739464350349,0.76161,2625.6,2625.5,0.00571875]
[1739464350744,3.2078,2625.8,2625.5,0.00571875]
[1739464351050,1.973,2626.0,2625.5,0.00571875]
[1739464351254,1.973,2626.0,2625.5,3.21351875]
[1739464351447,1.973,2626.0,2625.8,0.76154]
[1739464351946,1.973,2626.0,2625.6,0.76159]
[1739464352150,1.973,2626.0,2625.8,0.76154]
[1739464352354,3.21351875,2626.1,2625.5,5.11760875]
[1739464352555,3.21351875,2626.1,2625.5,3.21351875]
[1739464352751,3.21351875,2626.1,2625.8,0.76154]
[1739464352949,0.7615,2626.0,2625.8,0.76154]
[1739464353148,3.21351875,2626.1,2625.8,0.76154]
[1739464353149,3.97500875,2626.1,2625.8,0.76154]
[1739464353449,0.7615,2626.0,2625.8,0.76155]
[1739464353852,3.21351875,2626.1,2625.5,0.00571875]
[1739464354054,3.21351875,2626.1,2625.6,0.7616]
[1739464354055,0.76157,2625.8,2625.6,0.7616]
[1739464354249,0.76155,2625.9,2625.5,0.00571875]
[1739464354554,3.21351875,2626.1,2625.5,3.21351875]
[1739464354753,3.21351875,2626.1,2626.0,0.7615]
[1739464355651,0.00571875,2626.1,2626.0,0.7615]
[1739464356054,0.76156,2625.8,2625.5,0.00571875]
[1739464356349,3.2078,2625.9,2625.5,0.00571875]
[1739464356548,3.2078,2625.9,2625.6,0.76159]
[1739464356749,3.2078,2625.9,2625.5,0.00571875]
[1739464357052,0.76161,2625.6,2625.5,0.00571875]
[1739464357451,3.96941,2625.6,2625.5,0.00571875]
[1739464357952,3.2078,2625.9,2625.5,0.00571875]
[1739464358159,0.76158,2625.7,2625.6,0.76159]
[1739464358353,3.2078,2625.9,2625.8,0.76156]
[1739464358552,0.00571875,2626.1,2626.0,0.7615]
[1739464359149,0.00571875,2626.1,2625.5,1.12831875]
[1739464359350,3.21351875,2626.1,2625.5,1.12831875]
[1739464359552,3.21351875,2626.1,2625.5,3.03238875]
[1739464359747,3.21351875,2626.1,2626.0,0.7615]
[1739464359954,3.21351875,2626.1,2625.5,3.03238875]
[1739464360262,0.76161,2625.7,2625.6,0.76161]
[1739464360762,0.76156,2625.8,2625.7,0.76157]
[1739464361261,0.76161,2625.6,2625.5,0.00571875]
[1739464361859,3.2078,2626.0,2625.5,0.00571875]
[1739464362064,3.9693,2626.0,2625.9,0.76151]
[1739464362365,0.00571875,2626.1,2625.6,1.90398]
[1739464362563,0.00571875,2626.1,2626.0,0.7615]
[1739464363254,0.5496,2626.6,2626.0,0.7615]
[1739464363255,3.96909,2626.7,2626.6,0.76132]
[1739464363457,3.2078,2626.7,2626.6,0.76132]
[1739464363660,3.2078,2626.7,2625.9,5.11162]
[1739464363962,3.2078,2626.7,2626.0,40.8]
[1739464364155,3.2078,2626.7,2626.6,0.76132]
[1739464364355,1.96,2627.0,2626.2,3.2078]
[1739464364356,0.00571875,2626.6,2626.5,3.2078]
[1739464364552,0.00571875,2626.6,2626.5,3.96915]
[1739464365560,0.00571875,2626.6,2626.5,3.2078]
[1739464365859,0.00571875,2626.6,2626.5,0.76135]
[1739464366858,3.2078,2627.8,2626.5,9.2078]
[1739464367059,3.2078,2627.8,2627.0,4.42837305]
[1739464367269,3.2078,2627.8,2627.5,0.76105]
[1739464367465,1.90187,2628.6,2627.1,1.979]
[1739464367466,3.2078,2628.1,2627.2,40.8]
[1739464367762,0.76095,2627.9,2627.5,0.76104]
[1739464367962,3.2078,2628.0,2627.3,5.11061]
[1739464368162,3.2078,2628.0,2627.4,0.76679875]
[1739464368163,0.76103,2627.7,2627.4,0.76679875]
[1739464368368,3.21154727,2628.0,2627.4,0.76679875]
[1739464368567,3.21154727,2628.0,2627.5,0.76106]
[1739464368767,3.96881,2627.7,2627.4,0.76679875]
[1739464368965,3.2078,2627.7,2627.4,0.00571875]
[1739464369465,3.2078,2627.7,2627.6,0.76103]
[1739464370163,3.2078,2627.7,2627.4,0.00571875]
[1739464370462,3.2078,2627.7,2627.4,0.76680875]
[1739464370669,0.76106,2627.5,2627.4,0.00571875]
[1739464370862,3.2078,2627.7,2627.4,0.00571875]
[1739464371062,3.2078,2627.7,2627.6,0.76103]
[1739464371563,0.00374727,2628.0,2627.8,0.76097]
[1739464371767,0.00374727,2628.0,2627.4,0.00571875]
[1739464371966,0.76467727,2628.0,2627.4,0.00571875]
[1739464372159,0.761,2627.8,2627.5,0.76104]
[1739464372361,3.2078,2627.8,2627.4,1.98371875]
[1739464372568,3.2078,2627.8,2627.6,0.76101]
[1739464372767,0.00374727,2628.0,2627.4,3.88644875]
[1739464372967,0.00374727,2628.0,2627.4,1.98371875]
[1739464373174,0.00374727,2628.0,2627.9,0.76095]
[1739464373665,0.76468727,2628.0,2627.8,0.76096]
[1739464373877,0.00374727,2628.0,2627.8,0.76096]
[1739464374166,0.00374727,2628.0,2627.4,1.98371875]
[1739464374167,0.76099,2627.8,2627.6,0.76102]
[1739464374369,0.76096,2627.9,2627.7,0.76099]
[1739464374572,0.76097,2627.9,2627.7,0.76099]
[1739464374763,0.76468727,2628.0,2627.8,0.76096]
[1739464374960,0.00374727,2628.0,2627.4,0.00571875]
[1739464375163,3.2078,2627.8,2627.4,0.00571875]
[1739464375369,3.96879,2627.8,2627.4,0.00571875]
[1739464375566,0.00374727,2628.0,2627.5,4.42837305]
[1739464375769,3.2078,2627.8,2627.4,1.97471875]
[1739464376364,0.76105,2627.6,2627.5,0.76105]
[1739464376573,3.2078,2627.8,2627.4,1.97471875]
[1739464376766,0.76105,2627.6,2627.5,0.76105]
[1739464376964,0.76106,2627.5,2627.4,0.00571875]
[1739464377169,3.96886,2627.5,2627.4,0.00571875]
[1739464377372,3.96886,2627.5,2626.3,4.42837305]
[1739464377373,9.2078,2627.5,2626.3,4.42837305]
[1739464377573,3.2078,2626.4,2626.3,0.7614]
[1739464377768,1.1318,2627.4,2625.9,0.546]
[1739464377769,5.1878,2626.7,2625.9,0.546]
[1739464377970,0.76134,2626.6,2625.9,0.546]
[1739464378165,0.76133,2626.6,2626.4,0.76136]
[1739464378572,5.94911,2626.7,2626.4,0.76137]
[1739464378772,5.1878,2626.7,2626.2,40.80570765]
[1739464378971,3.2078,2626.7,2626.6,0.76132]
[1739464379468,3.96911,2626.7,2626.4,0.76136]
[1739464379778,3.2078,2626.7,2626.2,40.80570765]
[1739464380074,3.2078,2626.7,2626.6,0.76132]
[1739464380273,0.00570765,2626.8,2626.2,45.2340807]
[1739464380473,0.00570765,2626.8,2626.7,0.76129]
[1739464380972,7.65e-06,2626.8,2626.7,6.76129]
[1739464381275,7.65e-06,2626.8,2626.7,7.88099]
[1739464381473,7.65e-06,2626.8,2626.7,1.88099]
[1739464381773,7.65e-06,2626.8,2626.7,42.68099]
[1739464381970,7.65e-06,2626.8,2626.7,41.56129]
[1739464382472,0.76127765,2626.8,2626.7,40.8]
[1739464382672,0.76127765,2626.8,2626.2,8.2123807]
[1739464382673,0.76141,2626.3,2626.2,0.00570765]
[1739464382870,3.96921,2626.3,2626.2,0.00570765]
[1739464383370,11.1908,2626.3,2625.5,3.2078]
[1739464383564,3.2078,2625.9,2625.5,3.2078]
[1739464383879,1.984,2626.1,2625.6,40.8]
[1739464384171,7.65e-06,2626.8,2625.9,3.2078]
[1739464384378,7.65e-06,2626.8,2625.8,4.42837305]
[1739464384379,7.65e-06,2626.8,2626.7,0.76129]
[1739464384873,7.65e-06,2626.8,2626.7,1.90949]
[1739464385069,7.65e-06,2626.8,2626.7,7.90949]
[1739464385576,7.65e-06,2626.8,2626.7,1.90949]
[1739464385873,7.65e-06,2626.8,2626.7,7.90949]
[1739464387174,7.65e-06,2626.8,2626.7,1.90949]
[1739464387373,7.65e-06,2626.8,2626.7,7.90949]
[1739464387676,7.65e-06,2626.8,2626.7,1.90949]
[1739464387976,7.65e-06,2626.8,2626.7,7.90949]
[1739464388477,3.2078,2628.0,2627.8,0.76096]
[1739464388777,3.2078,2628.0,2627.4,4.42837305]
[1739464389270,3.2078,2628.0,2627.9,0.76095]
[1739464389472,3.2078,2628.0,2627.4,4.4340807]
[1739464389672,3.21350765,2628.0,2627.4,4.4340807]
[1739464390174,0.00570765,2628.0,2627.9,0.76095]
[1739464390670,0.00570765,2628.0,2627.6,3.2078]
[1739464390863,0.00570765,2628.0,2627.8,0.76097]
[1739464391070,0.00570765,2628.0,2627.9,0.76095]
[1739464391376,0.76663765,2628.0,2627.7,0.76098]
[1739464391569,0.00570765,2628.0,2627.6,3.2078]
[1739464391765,0.00570765,2628.0,2627.9,0.76095]
[1739464392883,4.9138,2628.9,2627.9,3.2078]
[1739464393072,3.2078,2628.9,2628.4,3.2078]
[1739464393270,3.2078,2628.9,2628.8,0.76069]
[1739464393672,3.2078,2629.3,2628.6,4.42837305]
[1739464394082,0.00375837,2629.2,2628.6,4.42837305]
[1739464394384,0.76069,2628.8,2628.7,40.80570765]
[1739464394570,0.76067,2628.9,2628.7,41.56639765]
[1739464394772,3.2078,2629.0,2628.7,0.00570765]
[1739464395181,0.76067,2628.9,2628.7,0.76640765]
[1739464395375,3.2078,2629.0,2628.7,0.00570765]
[1739464395578,0.76069,2628.8,2628.7,0.00570765]
[1739464396578,1.969,2628.8,2628.7,0.00570765]
[1739464396874,0.76069,2628.8,2628.7,0.00570765]
[1739464397080,3.2078,2629.0,2628.7,0.00570765]
[1739464397382,0.76069,2628.8,2628.7,0.00570765]
[1739464397571,3.96845,2629.0,2628.7,0.00570765]
[1739464397774,0.00375837,2629.2,2628.7,0.00570765]
[1739464397974,0.00375837,2629.2,2629.1,0.7606]
[1739464398180,0.76433837,2629.2,2629.0,0.7606]
[1739464398485,0.00375837,2629.2,2629.1,0.7606]
[1739464398780,0.00375837,2629.2,2628.7,0.00570765]
[1739464398781,0.76061,2629.1,2629.0,0.76061]
[1739464398982,0.00375837,2629.2,2629.1,0.7606]
[1739464402686,0.00375837,2629.2,2629.1,6.7606]
[1739464402880,3.2078,2629.6,2629.5,0.76048]
[1739464403483,3.96825,2629.6,2629.5,0.76048]
[1739464403785,3.2078,2629.6,2629.1,0.58]
[1739464404085,3.2078,2629.6,2629.5,0.76048]
[1739464404584,3.2078,2630.1,2630.0,0.76034]
[1739464404772,3.96811,2630.1,2630.0,0.76034]
[1739464404978,0.76035,2630.0,2629.9,0.76036]
[1739464405178,0.76045,2629.7,2629.4,7.63617305]
[1739464405386,3.2078,2629.8,2629.1,0.58]
[1739464405587,0.76051,2629.5,2629.1,0.58]
[1739464405784,0.5695,2630.0,2629.6,0.76043]
[1739464405980,0.5695,2630.0,2629.2,1.90143]
[1739464407580,0.76009,2630.9,2630.7,0.76013]
[1739464407786,0.76008,2630.9,2630.3,3.21350765]
[1739464408088,3.2078,2631.0,2630.3,3.21350765]
[1739464408295,0.76022,2630.4,2630.3,0.00570765]
[1739464408587,3.96802,2630.4,2630.3,0.00570765]
[1739464408978,3.2078,2630.4,2629.5,3.2078]
[1739464409178,3.2078,2630.3,2629.5,3.2078]
[1739464409383,3.2078,2630.0,2629.4,10.17437305]
[1739464409991,3.2078,2629.7,2629.1,2.5092]
[1739464410192,0.76048,2629.5,2629.4,0.00570765]
[1739464410490,1.90106,2629.8,2629.5,0.76048]
[1739464410491,3.2078,2629.6,2629.5,0.76048]
[1739464410690,0.5493,2629.8,2629.4,0.00570765]
[1739464410993,0.5493,2629.8,2629.7,0.76043]
[1739464411486,0.5493,2629.8,2629.4,0.00570765]
[1739464411681,0.5493,2629.8,2629.7,0.76043]
[1739464411887,0.5493,2629.8,2629.4,1.90698765]